fUSD/lending_fUSD_20250916
["ID","MTS","AMOUNT","RATE_DAILY","PERIOD"]
[385849843,1758059547384,-400.0,0.00034793,6]
[385849844,1758059547394,-404.97,0.00034793,6]
[385849845,1758059547404,-431.58,0.00034793,6]
[385849846,1758059547413,-564.94,0.00034793,6]
[385849847,1758059547422,-400.0,0.00034793,6]
[385849848,1758059547437,-475.93,0.00034793,6]
[385849849,1758059547446,-646.81,0.00034793,6]
[385849850,1758059547456,-400.0,0.00034793,6]
[385849851,1758059547467,-400.0,0.00034793,6]
[385849852,1758059547476,-503.49,0.00034793,6]
[385849853,1758059547487,-555.18,0.00034793,6]
[385849854,1758059547497,-493.67,0.00034793,6]
[385849855,1758059547508,-406.48,0.00034793,6]
[385849856,1758059547519,-400.0,0.00034793,6]
[385849857,1758059547529,-472.57,0.00034793,6]
[385849858,1758059547539,-566.4,0.00034793,6]
[385849859,1758059547549,-443.11,0.00034793,6]
[385849860,1758059547558,-556.41,0.00034793,6]
[385849861,1758059547568,-642.62,0.00034793,6]
[385849862,1758059547578,-526.48,0.00034793,6]
[385849863,1758059547588,-638.73,0.00034793,6]
[385849864,1758059547785,-365.27,0.00034793,6]
[385849865,1758059547799,-514.99,0.00034793,6]
[385849866,1758059547808,-477.56,0.00034793,6]
[385849867,1758059547817,-400.0,0.00034793,6]
[385849868,1758059547825,-824.84,0.00034793,6]
[385849869,1758059547835,-558.91,0.00034793,6]
[385849870,1758059547846,-429.04,0.00034793,6]
[385849871,1758059547856,-771.88,0.00034793,6]
[385849872,1758059547865,-400.0,0.00034793,6]
[385849873,1758059547875,-456.11,0.00034793,6]
[385849874,1758059547885,-422.65,0.00034793,6]
[385849875,1758059547894,-542.53392392,0.00034793,6]
[385849876,1758059547905,-400.0,0.00034793,6]
[385849877,1758059547914,-195.905487,0.00034793,7]
[385849878,1758059547924,-195.905487,0.00034793,7]
[385849879,1758059547933,-195.905487,0.00034793,7]
[385849880,1758059547942,-195.905487,0.00034793,7]
[385849881,1758059547951,-195.905487,0.00034793,7]
[385849882,1758059547961,-195.905487,0.00034793,7]
[385849883,1758059547970,-195.905487,0.00034793,7]
[385849884,1758059547980,-195.905487,0.00034793,7]
[385849885,1758059547989,-195.905487,0.00034793,7]
[385849886,1758059547999,-195.905487,0.00034793,7]
[385849887,1758059548008,-195.905487,0.00034793,7]
[385849888,1758059548017,-195.905487,0.00034793,7]
[385849889,1758059548028,-195.905487,0.00034793,7]
[385849890,1758059548038,-195.905487,0.00034793,7]
[385849891,1758059548048,-195.905487,0.00034793,7]
[385849892,1758059548057,-195.905487,0.00034793,7]
[385849893,1758059548066,-195.905487,0.00034793,7]
[385849894,1758059548076,-195.905487,0.00034793,7]
[385849895,1758059548085,-195.905487,0.00034793,7]
[385849896,1758059548094,-195.905483,0.00034793,7]
[385849897,1758059548104,-154.104821,0.00034793,7]
[385849898,1758059548114,-400.0,0.00034793,6]
[385849899,1758059548124,-151.0,0.00034793,7]
[385849900,1758059548133,-151.0,0.00034793,7]
[385849901,1758059548142,-682.71,0.00034793,6]
[385849902,1758059548152,-792.25,0.00034793,6]
[385849903,1758059548161,-1411.58,0.00034793,6]
[385849904,1758059548171,-678.71,0.00034793,6]
[385849905,1758059548181,-876.88,0.00034793,6]
[385849906,1758059548191,-922.72,0.00034793,6]
[385849907,1758059548200,-590.13,0.00034793,6]
[385849908,1758059548209,-741.55,0.00034793,6]
[385849909,1758059548218,-150.0,0.00034793,2]
[385849910,1758059548227,-400.0,0.00034793,6]
[385849911,1758059548237,-400.0,0.00034793,6]
[385849912,1758059548246,-400.0,0.00034793,6]
[385849913,1758059548256,-923.03,0.00034793,6]
[385849914,1758059548265,-400.0,0.00034794,6]
[385849915,1758059548274,-446.83,0.00034794,6]
[385849916,1758059548283,-547.28,0.00034794,6]
[385849917,1758059548292,-400.0,0.00034794,6]
[385849918,1758059548302,-400.0,0.00034794,6]
[385849919,1758059548311,-404.16,0.00034794,6]
[385849920,1758059548320,-528.17,0.00034794,6]
[385849921,1758059548330,-542.9,0.00034794,6]
[385849922,1758059548339,-854.5,0.00034794,6]
[385849923,1758059548350,-403.43,0.00034794,6]
[385849924,1758059548359,-400.0,0.00034794,6]
[385849925,1758059548368,-201.05272014,0.00034794,6]
[385849926,1758059548377,-501.22807451,0.00034794,6]
[385849927,1758059548386,-400.0,0.00034794,6]
[385849928,1758059548396,-226.33992997,0.00034794,6]
[385849929,1758059548405,-400.0,0.00034794,6]
[385849930,1758059548415,-425.79,0.00034794,6]
[385849931,1758059548428,-440.62,0.00034794,6]
[385849932,1758059548438,-627.06,0.00034794,6]
[385849933,1758059548447,-531.6321793,0.00034794,6]
[385849934,1758059548457,-404.88,0.00034794,6]
[385849935,1758059548466,-550.75,0.00034794,6]
[385849936,1758059548475,-482.27,0.00034794,6]
[385849937,1758059548485,-597.91,0.00034794,6]
[385849938,1758059548494,-400.0,0.00034794,6]
[385849939,1758059548503,-489.33,0.00034794,6]
[385849940,1758059548513,-400.0,0.00034794,6]
[385849941,1758059548523,-400.44,0.00034794,6]
[385849942,1758059548532,-432.89,0.00034794,6]
[385849943,1758059548542,-1630.47,0.00034794,6]
[385849944,1758059548551,-223.77768119,0.00034794,6]
[385849945,1758059548561,-464.0,0.00034794,6]
[385849946,1758059548571,-541.51,0.00034794,6]
[385849947,1758059548581,-400.0,0.00034794,120]
[385849948,1758059548591,-400.0,0.00034794,6]
[385849949,1758059548601,-431.13,0.00034794,6]
[385849950,1758059548611,-666.3,0.00034794,6]
[385849951,1758059548620,-400.0,0.00034794,6]
[385849952,1758059548630,-400.0,0.00034794,6]
[385849953,1758059548639,-470.62422087,0.00034794,6]
[385849954,1758059548648,-547.93,0.00034794,6]
[385849955,1758059548657,-402.62150046,0.00034794,6]
[385849956,1758059548667,-474.55,0.00034794,6]
[385849957,1758059548675,-445.76,0.00034794,6]
[385849958,1758059548685,-400.0,0.00034794,6]
[385849959,1758059548694,-681.13,0.00034794,6]
[385849960,1758059548703,-520.69,0.00034794,6]
[385849961,1758059548712,-400.0,0.00034794,6]
[385849962,1758059548722,-402.9,0.00034794,6]
[385849963,1758059548731,-400.0,0.00034794,6]
[385849964,1758059548741,-400.0,0.00034794,6]
[385849965,1758059548750,-400.0,0.00034794,6]
[385849966,1758059548760,-438.72,0.00034794,6]
[385849967,1758059548769,-930.22,0.00034794,6]
[385849968,1758059548779,-520.75,0.00034794,6]
[385849969,1758059548791,-400.0,0.00034794,6]
[385849970,1758059548800,-691.69,0.00034794,6]
[385849971,1758059548810,-541.46,0.00034794,6]
[385849972,1758059548820,-840.93,0.00034794,6]
[385849973,1758059548830,-531.61,0.00034794,6]
[385849974,1758059548838,-528.41,0.00034794,6]
[385849975,1758059548849,-256.36,0.00034794,6]
[385849976,1758059548858,-3105.74,0.00034794,6]
[385849977,1758059548867,-400.0,0.00034794,6]
[385849978,1758059548876,-593.33,0.00034794,6]
[385849979,1758059548888,-530.57,0.00034794,6]
[385849980,1758059548897,-454.65084051,0.00034794,6]
[385849981,1758059548910,-801.13,0.00034794,6]
[385849982,1758059548920,-400.0,0.00034794,6]
[385849983,1758059548930,-400.0,0.00034794,6]
[385849984,1758059548941,-400.0,0.00034794,6]
[385849985,1758059548951,-720.72,0.00034794,6]
[385849986,1758059548962,-450.36,0.00034794,6]
[385849987,1758059548972,-151.0,0.00034794,7]
[385849988,1758059548981,-189.979376,0.00034794,7]
[385849989,1758059548991,-151.0,0.00034794,7]
[385849990,1758059549000,-400.0,0.00034794,6]
[385849991,1758059549009,-400.0,0.00034794,6]
[385849992,1758059549019,-455.66,0.00034794,6]
[385849993,1758059549028,-400.0,0.00034794,6]
[385849994,1758059549039,-400.0,0.00034794,6]
[385849995,1758059549050,-452.15,0.00034794,6]
[385849996,1758059549059,-599.86,0.00034794,6]
[385849997,1758059549070,-1299.74,0.00034794,6]
[385849998,1758059549079,-572.67,0.00034794,6]
[385849999,1758059549089,-400.0,0.00034794,6]
[385850000,1758059549098,-422.38,0.00034794,6]
[385850001,1758059549108,-499.84,0.00034794,6]
[385850002,1758059549117,-404.16,0.00034794,6]
[385850003,1758059549128,-400.0,0.00034794,6]
[385850004,1758059549139,-400.0,0.00034794,6]
[385850005,1758059549150,-360.61117916,0.00034794,6]
[385850006,1758059549159,-924.76,0.00034794,6]
[385850007,1758059549169,-1289.24,0.00034794,6]
[385850008,1758059549178,-554.69,0.00034794,6]
[385850009,1758059549187,-400.0,0.00034794,6]
[385850010,1758059549197,-467.79,0.00034794,6]
[385850011,1758059549206,-799.13,0.00034794,6]
[385850012,1758059549217,-943.71,0.00034794,6]
[385850013,1758059549230,-562.81,0.00034794,6]
[385850014,1758059549241,-617.84,0.00034794,6]
[385850015,1758059549250,-1554.92,0.00034794,6]
[385850016,1758059549261,-472.52,0.00034794,6]
[385850017,1758059549270,-502.44,0.00034794,6]
[385850018,1758059549279,-2454.26,0.00034794,6]
[385850019,1758059549290,-400.0,0.00034794,6]
[385850020,1758059549300,-814.45,0.00034794,6]
[385850021,1758059549310,-581.21,0.00034794,6]
[385850022,1758059549319,-400.0,0.00034794,6]
[385850023,1758059549329,-2151.75,0.00034794,6]
[385850024,1758059549338,-400.0,0.00034794,6]
[385850025,1758059549349,-939.275,0.00034794,22]
[385850026,1758059549358,-590.85,0.00034794,6]
[385850027,1758059549368,-400.0,0.00034794,6]
[385850028,1758059549377,-576.61,0.00034794,6]
[385850029,1758059549387,-616.64,0.00034794,6]
[385850030,1758059549396,-426.57,0.00034794,6]
[385850031,1758059549405,-2554.31,0.00034794,6]
[385850032,1758059549415,-695.75,0.00034794,6]
[385850033,1758059549428,-862.95,0.00034794,6]
[385850034,1758059549438,-352.41072017,0.00034794,6]
[385850035,1758059549447,-465.42,0.00034794,6]
[385850036,1758059549456,-528.3,0.00034794,6]
[385850037,1758059549466,-629.46,0.00034794,6]
[385850038,1758059549478,-402.58,0.00034794,6]
[385850039,1758059549487,-760.02,0.00034794,6]
[385850040,1758059549496,-400.0,0.00034794,6]
[385850041,1758059549506,-573.15,0.00034794,6]
[385850042,1758059549515,-400.0,0.00034794,6]
[385850043,1758059549525,-555.71,0.00034794,6]
[385850044,1758059549534,-400.0,0.00034794,6]
[385850045,1758059549543,-479.18,0.00034794,6]
[385850046,1758059549552,-447.53,0.00034794,6]
[385850047,1758059549561,-418.11,0.00034794,6]
[385850048,1758059549571,-435.17,0.00034794,6]
[385850049,1758059549580,-450.0,0.00034794,6]
[385850050,1758059549590,-423.89,0.00034794,6]
[385850051,1758059549600,-473.55776555,0.00034794,6]
[385850052,1758059549609,-400.0,0.00034794,6]
[385850053,1758059549619,-778.74,0.00034794,6]
[385850054,1758059549628,-704.61,0.00034794,6]
[385850055,1758059549637,-1172.18,0.00034794,6]
[385850056,1758059549647,-5286.95,0.00034794,6]
[385850057,1758059549657,-400.0,0.00034794,6]
[385850058,1758059549666,-219.68614391,0.00034794,6]
[385850059,1758059549675,-542.4,0.00034794,6]
[385850060,1758059549684,-173.26404244,0.00034794,6]
[385850061,1758059549693,-400.0,0.00034794,6]
[385850062,1758059549702,-435.09,0.00034794,6]
[385850063,1758059549711,-400.0,0.00034794,6]
[385850064,1758059549720,-527.52,0.00034794,6]
[385850065,1758059549729,-551.22,0.00034794,6]
[385850066,1758059549738,-400.0,0.00034794,6]
[385850067,1758059549748,-400.0,0.00034794,6]
[385850068,1758059549757,-483.09,0.00034794,6]
[385850069,1758059549766,-777.85,0.00034794,6]
[385850070,1758059549774,-400.0,0.00034794,6]
[385850071,1758059549784,-445.13,0.00034794,6]
[385850072,1758059549793,-510.44,0.00034794,6]
[385850073,1758059549802,-650.71,0.00034794,6]
[385850074,1758059549811,-632.37,0.00034794,6]
[385850075,1758059549820,-400.0,0.00034794,6]
[385850076,1758059549830,-400.0,0.00034794,6]
[385850077,1758059549839,-400.0,0.00034794,6]
[385850078,1758059549848,-763.55,0.00034794,6]
[385850079,1758059549857,-400.0,0.00034794,6]
[385850080,1758059549866,-701.89,0.00034794,6]
[385850081,1758059549875,-796.09,0.00034794,6]
[385850082,1758059549884,-620.92,0.00034794,6]
[385850083,1758059549893,-400.0,0.00034794,6]
[385850084,1758059549903,-268.13816553,0.00034794,6]
[385850085,1758059549912,-400.0,0.00034794,6]
[385850086,1758059549921,-745.62,0.00034794,6]
[385850087,1758059549930,-447.35,0.00034794,6]
[385850088,1758059549940,-629.24,0.00034794,6]
[385850089,1758059549950,-400.0,0.00034794,6]
[385850090,1758059549959,-400.0,0.00034794,6]
[385850091,1758059549968,-936.1,0.00034794,6]
[385850092,1758059549977,-400.0,0.00034794,6]
[385850093,1758059549986,-1215.29,0.00034794,6]
[385850094,1758059550005,-400.0,0.00034794,6]
[385850095,1758059550015,-400.0,0.00034794,6]
[385850096,1758059550024,-470.35,0.00034794,6]
[385850097,1758059550033,-400.0,0.00034794,6]
[385850098,1758059550043,-722.71,0.00034794,6]
[385850099,1758059550052,-400.0,0.00034794,6]
[385850100,1758059550061,-656.3,0.00034794,6]
[385850101,1758059550070,-1790.44,0.00034794,6]
[385850102,1758059550080,-400.0,0.00034794,6]
[385850103,1758059550089,-400.0,0.00034794,6]
[385850104,1758059550098,-400.0,0.00034794,6]
[385850105,1758059550107,-429.26,0.00034794,6]
[385850106,1758059550117,-1382.16,0.00034794,6]
[385850107,1758059550127,-1005.55,0.00034794,6]
[385850108,1758059550136,-400.0,0.00034794,6]
[385850109,1758059550145,-690.12,0.00034794,6]
[385850110,1758059550154,-400.0,0.00034794,6]
[385850111,1758059550163,-607.8,0.00034794,6]
[385850112,1758059550173,-1101.76,0.00034794,6]
[385850113,1758059550182,-644.78,0.00034794,6]
[385850114,1758059550191,-671.41,0.00034794,6]
[385850115,1758059550201,-400.0,0.00034794,6]
[385850116,1758059550211,-783.19,0.00034794,6]
[385850117,1758059550220,-467.3,0.00034794,6]
[385850118,1758059550230,-450.16,0.00034794,6]
[385850119,1758059550239,-150.54280024,0.00034794,6]
[385850120,1758059550248,-319.66198043,0.00034794,6]
[385850121,1758059550257,-1181.9,0.00034794,6]
[385850122,1758059550266,-431.77,0.00034794,6]
[385850123,1758059550276,-1421.99,0.00034794,6]
[385850124,1758059550285,-604.53,0.00034794,6]
[385850125,1758059550294,-417.22,0.00034794,6]
[385850126,1758059550303,-633.44,0.00034794,6]
[385850127,1758059550313,-839.09243417,0.00034815,2]
[385850128,1758059550323,-500.0,0.0003485,7]
[385850129,1758059550332,-892.92,0.00034855,6]
[385850130,1758059550342,-568.06,0.00034855,6]
[385850131,1758059550352,-1072.67,0.00034855,6]
[385850132,1758059550361,-512.55,0.00034855,6]
[385850133,1758059550370,-774.02,0.00034855,5]
[385850134,1758059550380,-400.0,0.00034855,6]
[385850135,1758059550390,-400.0,0.00034855,6]
[385850136,1758059550399,-1556.21254549,0.00034869,2]
[385850137,1758059550410,-230.45,0.00034887,60]
[385850138,1758059550422,-500.0,0.00034919,7]
[385850139,1758059550433,-1200.0,0.00034927,7]
[385850140,1758059550443,-170.77,0.00034927,30]
[385850141,1758059550455,-500.0,0.00034946,7]
[385850142,1758059550465,-1200.0,0.00034955,7]
[385850143,1758059550474,-500.0,0.00034961,7]
[385850144,1758059550484,-230.45,0.00034987,60]
[385850145,1758059550495,-2000.0,0.00035,2]
[385850146,1758059550505,-2000.0,0.00035,2]
[385850147,1758059550516,-2000.0,0.00035,2]
[385850148,1758059550526,-500.0,0.00035005,7]
[385850149,1758059550537,-152.0,0.0003501,4]
[385850150,1758059550546,-2058.39,0.00035029,6]
[385850151,1758059550556,-412.53,0.00035029,6]
[385850152,1758059550566,-618.61,0.00035029,6]
[385850153,1758059550576,-1651.68,0.00035029,6]
[385850154,1758059550586,-2717.2,0.00035029,6]
[385850155,1758059550595,-462.71,0.00035029,6]
[385850156,1758059550606,-496.55544799,0.00035029,6]
[385850157,1758059550615,-400.0,0.00035029,6]
[385850158,1758059550625,-400.0,0.00035029,6]
[385850159,1758059550635,-3231.76,0.00035029,6]
[385850160,1758059550645,-436.89,0.00035029,6]
[385850161,1758059550654,-1000.0,0.0003503,7]
[385850162,1758059550664,-1100.0,0.00035032,7]
[385850163,1758059550673,-485.67,0.00035066,6]
[385850164,1758059550683,-400.0,0.00035066,6]
[385850165,1758059550692,-467.8,0.00035066,6]
[385850166,1758059550702,-400.0,0.00035067,6]
[385850167,1758059550711,-467.83,0.00035067,6]
[385850168,1758059550721,-400.0,0.00035067,6]
[385850169,1758059550730,-453.02,0.00035067,6]
[385850170,1758059550740,-893.66,0.00035067,6]
[385850171,1758059550751,-400.0,0.00035067,6]
[385850172,1758059550760,-400.0,0.00035067,6]
[385850173,1758059550769,-404.97,0.00035067,6]
[385850174,1758059550779,-431.58,0.00035067,6]
[385850175,1758059550788,-564.94,0.00035067,6]
[385850176,1758059550798,-400.0,0.00035067,6]
[385850177,1758059550807,-475.93,0.00035067,6]
[385850178,1758059551047,-646.81,0.00035067,6]
[385850179,1758059551056,-400.0,0.00035067,6]
[385850180,1758059551065,-400.0,0.00035067,6]
[385850181,1758059551075,-503.49,0.00035067,6]
[385850182,1758059551085,-555.18,0.00035067,6]
[385850183,1758059551094,-493.67,0.00035067,6]
[385850184,1758059551105,-406.48,0.00035067,6]
[385850185,1758059551114,-400.0,0.00035067,6]
[385850186,1758059551123,-472.57,0.00035067,6]
[385850187,1758059551133,-566.4,0.00035067,6]
[385850188,1758059551142,-443.11,0.00035067,6]
[385850189,1758059551151,-556.41,0.00035067,6]
[385850190,1758059551161,-642.62,0.00035067,6]
[385850191,1758059551173,-526.48,0.00035067,6]
[385850192,1758059551184,-638.73,0.00035067,6]
[385850193,1758059551193,-514.99,0.00035067,6]
[385850194,1758059551204,-477.56,0.00035067,6]
[385850195,1758059551214,-400.0,0.00035067,6]
[385850196,1758059551224,-824.84,0.00035067,6]
[385850197,1758059551234,-558.91,0.00035067,6]
[385850198,1758059551246,-429.04,0.00035067,6]
[385850199,1758059551257,-771.88,0.00035067,6]
[385850200,1758059551266,-400.0,0.00035067,6]
[385850201,1758059551276,-456.11,0.00035067,6]
[385850202,1758059551286,-422.65,0.00035067,6]
[385850203,1758059551296,-400.0,0.00035067,6]
[385850204,1758059551306,-400.0,0.00035067,6]
[385850205,1758059551315,-682.71,0.00035067,6]
[385850206,1758059551324,-792.25,0.00035067,6]
[385850207,1758059551334,-1411.58,0.00035067,6]
[385850208,1758059551345,-678.71,0.00035067,6]
[385850209,1758059551355,-876.88,0.00035067,6]
[385850210,1758059551364,-922.72,0.00035067,6]
[385850211,1758059551374,-590.13,0.00035067,6]
[385850212,1758059551383,-741.55,0.00035067,6]
[385850213,1758059551393,-400.0,0.00035067,6]
[385850214,1758059551403,-400.0,0.00035067,6]
[385850215,1758059551413,-400.0,0.00035067,6]
[385850216,1758059551422,-923.03,0.00035067,6]
[385850217,1758059551432,-400.0,0.00035068,6]
[385850218,1758059551443,-446.83,0.00035068,6]
[385850219,1758059551455,-547.28,0.00035068,6]
[385850220,1758059551464,-400.0,0.00035068,6]
[385850221,1758059551474,-400.0,0.00035068,6]
[385850222,1758059551484,-404.16,0.00035068,6]
[385850223,1758059551494,-528.17,0.00035068,6]
[385850224,1758059551503,-542.9,0.00035068,6]
[385850225,1758059551513,-854.5,0.00035068,6]
[385850226,1758059551523,-403.43,0.00035068,6]
[385850227,1758059551533,-400.0,0.00035068,6]
[385850228,1758059551543,-400.0,0.00035068,6]
[385850229,1758059551553,-321.14371444,0.00035068,6]
[385850230,1758059551562,-425.79,0.00035068,6]
[385850231,1758059551572,-440.62,0.00035068,6]
[385850232,1758059551582,-627.06,0.00035068,6]
[385850233,1758059551590,-404.88,0.00035068,6]
[385850234,1758059551600,-550.75,0.00035068,6]
[385850235,1758059551609,-482.27,0.00035068,6]
[385850236,1758059551619,-597.91,0.00035068,6]
[385850237,1758059551628,-400.0,0.00035068,6]
[385850238,1758059551637,-489.33,0.00035068,6]
[385850239,1758059551646,-400.0,0.00035068,6]
[385850240,1758059551656,-400.44,0.00035068,6]
[385850241,1758059551666,-432.89,0.00035068,6]
[385850242,1758059551675,-1630.47,0.00035068,6]
[385850243,1758059551684,-464.0,0.00035068,6]
[385850244,1758059551694,-541.51,0.00035068,6]
[385850245,1758059551703,-235.9175621,0.00035068,120]
[385850246,1758059551713,-400.0,0.00035068,6]
[385850247,1758059551722,-431.13,0.00035068,6]
[385850248,1758059551732,-666.3,0.00035068,6]
[385850249,1758059551741,-400.0,0.00035068,6]
[385850250,1758059551751,-400.0,0.00035068,6]
[385850251,1758059551760,-547.93,0.00035068,6]
[385850252,1758059551770,-474.55,0.00035068,6]
[385850253,1758059551779,-445.76,0.00035068,6]
[385850254,1758059551789,-400.0,0.00035068,6]
[385850255,1758059551799,-681.13,0.00035068,6]
[385850256,1758059551810,-520.69,0.00035068,6]
[385850257,1758059551820,-200.35,0.00035068,6]
[385850258,1758059551832,-402.9,0.00035068,6]
[385850259,1758059551842,-400.0,0.00035068,6]
[385850260,1758059551851,-400.0,0.00035068,6]
[385850261,1758059551861,-400.0,0.00035068,6]
[385850262,1758059551871,-438.72,0.00035068,6]
[385850263,1758059551880,-930.22,0.00035068,6]
[385850264,1758059551889,-520.75,0.00035068,6]
[385850265,1758059551899,-400.0,0.00035068,6]
[385850266,1758059551908,-691.69,0.00035068,6]
[385850267,1758059551918,-541.46,0.00035068,6]
[385850268,1758059551928,-840.93,0.00035068,6]
[385850269,1758059551938,-531.61,0.00035068,6]
[385850270,1758059551947,-151.0,0.00035068,7]
[385850271,1758059551957,-151.0,0.00035068,7]
[385850272,1758059551966,-151.0,0.00035068,7]
[385850273,1758059551977,-151.0,0.00035068,7]
[385850274,1758059551987,-151.0,0.00035068,7]
[385850275,1758059551997,-151.0,0.00035068,7]
[385850276,1758059552008,-151.0,0.00035068,7]
[385850277,1758059552020,-528.41,0.00035068,6]
[385850278,1758059552029,-3105.74,0.00035068,6]
[385850279,1758059552039,-400.0,0.00035068,6]
[385850280,1758059552049,-593.33,0.00035068,6]
[385850281,1758059552058,-530.57,0.00035068,6]
[385850282,1758059552068,-801.13,0.00035068,6]
[385850283,1758059552077,-400.0,0.00035068,6]
[385850284,1758059552086,-400.0,0.00035068,6]
[385850285,1758059552096,-400.0,0.00035068,6]
[385850286,1758059552106,-720.72,0.00035068,6]
[385850287,1758059552117,-450.36,0.00035068,6]
[385850288,1758059552127,-400.0,0.00035068,6]
[385850289,1758059552136,-400.0,0.00035068,6]
[385850290,1758059552148,-455.66,0.00035068,6]
[385850291,1758059552158,-400.0,0.00035068,6]
[385850292,1758059552170,-243.7,0.00035068,6]
[385850293,1758059552180,-452.15,0.00035068,6]
[385850294,1758059552190,-599.86,0.00035068,6]
[385850295,1758059552199,-1299.74,0.00035068,6]
[385850296,1758059552209,-572.67,0.00035068,6]
[385850297,1758059552218,-400.0,0.00035068,6]
[385850298,1758059552227,-422.38,0.00035068,6]
[385850299,1758059552237,-404.16,0.00035068,6]
[385850300,1758059552246,-400.0,0.00035068,6]
[385850301,1758059552256,-400.0,0.00035068,6]
[385850302,1758059552265,-924.76,0.00035068,6]
[385850303,1758059552275,-1289.24,0.00035068,6]
[385850304,1758059552284,-554.69,0.00035068,6]
[385850305,1758059552293,-400.0,0.00035068,6]
[385850306,1758059552302,-467.79,0.00035068,6]
[385850307,1758059552311,-799.13,0.00035068,6]
[385850308,1758059552321,-943.71,0.00035068,6]
[385850309,1758059552330,-562.81,0.00035068,6]
[385850310,1758059552339,-617.84,0.00035068,6]
[385850311,1758059552348,-1554.92,0.00035068,6]
[385850312,1758059552358,-472.52,0.00035068,6]
[385850313,1758059552367,-502.44,0.00035068,6]
[385850314,1758059552376,-2454.26,0.00035068,6]
[385850315,1758059552386,-449.28391662,0.00035068,6]
[385850316,1758059552395,-814.45,0.00035068,6]
[385850317,1758059552404,-581.21,0.00035068,6]
[385850318,1758059552414,-188.82856607,0.00035068,6]
[385850319,1758059552423,-400.0,0.00035068,6]
[385850320,1758059552433,-2151.75,0.00035068,6]
[385850321,1758059552443,-590.85,0.00035068,6]
[385850322,1758059552455,-400.0,0.00035068,6]
[385850323,1758059552465,-576.61,0.00035068,6]
[385850324,1758059552475,-616.64,0.00035068,6]
[385850325,1758059552499,-426.57,0.00035068,6]
[385850326,1758059552516,-2554.31,0.00035068,6]
[385850327,1758059552536,-695.75,0.00035068,6]
[385850328,1758059552556,-862.95,0.00035068,6]
[385850329,1758059552573,-465.42,0.00035068,6]
[385850330,1758059552592,-528.3,0.00035068,6]
[385850331,1758059552611,-629.46,0.00035068,6]
[385850332,1758059552631,-402.58,0.00035068,6]
[385850333,1758059552650,-760.02,0.00035068,6]
[385850334,1758059552669,-400.0,0.00035068,6]
[385850335,1758059552685,-573.15,0.00035068,6]
[385850336,1758059552699,-400.0,0.00035068,6]
[385850337,1758059552718,-555.71,0.00035068,6]
[385850338,1758059552731,-400.0,0.00035068,6]
[385850339,1758059552749,-479.18,0.00035068,6]
[385850340,1758059552767,-447.53,0.00035068,6]
[385850341,1758059552782,-418.11,0.00035068,6]
[385850342,1758059552796,-435.17,0.00035068,6]